Workbook

Sheet Mestaruussarja
B1: Pasi Viitanen | E1: 16.4.1968
B2: MESTARUUSSARJA | E2: Runkosarja | I2: Kärkilyönnit (KL), pesänvälit | P2: Ylempi loppusarja | W2: Alempi loppusarja | AD2: Arvo-ottelut | AH2: Mitalit
B3: Vuosi | C3: Sija | D3: Seura | E3: OTT | F3: KUN | G3: LÖI | H3: TOI | I3: KL | J3: 0 > 1 | K3: 1 > 2 | L3: 2 > 3 | M3: 3 > k | N3: KL-% | P3: OTT | Q3: KUN | R3: LÖI | S3: TOI | T3: KL | U3: KL-% | W3: OTT | X3: KUN | Y3: LÖI | Z3: TOI | AA3: KL | AB3: KL-% | AD3: IL | AE3: LL | AF3: Cup | AG3: K | AH3: H | AI3: P
B4: 1984 | C4: 6. | D4: JoKo | F4: suomensarja | AF4: 1
B5: 1985 | C5: 10. | D5: JoKo | F5: suomensarja
B6: 1986 | C6: 2. | D6: TPP | F6: maakuntasarja
B7: 1987 | C7: 1. | D7: TPP | F7: maakuntasarja
B8: 1988 | C8: 4. | D8: TPP | F8: suomensarja
B9: 1989 | C9: 9. | D9: JoKo | F9: suomensarja
B10: 1990 | C10: 4. | D10: JoKo | F10: suomensarja
B11: 1992 | C11: 10. | D11: JoKo | F11: ykköspesis
B12: 1993 | C12: 9. | D12: JoKo | F12: ykköspesis
B13: 1994 | C13: 10. | D13: JoKo | F13: ykköspesis
B14: 1995 | C14: 10. | D14: JoKo | F14: ykköspesis
B15: 1996
B16: 1997
B17: 1998
B18: 1999
B19: 2000 | C19: 13. | D19: JoKo | F19: ykköspesis
B20: 2001
B21: 2002 | C21: 1. | D21: KöLa | F21: suomensarja
B22: 2003 | C22: 8. | D22: JoKo | F22: suomensarja
B23: 2004 | C23: 1. | D23: JoKo | F23: suomensarja
B24: Yhteensä | E24: 0 | F24: 0 | G24: 0 | H24: 0 | I24: 0 | J24: 0 | K24: 0 | L24: 0 | M24: 0 | P24: 0 | Q24: 0 | R24: 0 | S24: 0 | T24: 0 | W24: 0 | X24: 0 | Y24: 0 | Z24: 0 | AA24: 0 | AD24: 0 | AE24: 0 | AF24: 1 | AG24: 0 | AH24: 0 | AI24: 0
B25: Pesispörssi | D25: 15.0
B27: URA SUPERISSA | E27: OTT | F27: KUN | G27: LÖI | H27: TOI | I27: KL | K27: ka/L | L27: ka/T | M27: ka/KL | N27: KL-% | P27: ENSIMMÄISET RUNKOSARJASSA
B28: Runkosarja
B29: Ylempi loppusarja
B30: Alempi loppusarja
B31: KAIKKI
B33: Seurat | D33: JoKo = Jokioisten Koetus (1902)
D34: TPP = Tammelan Pallopeliitat
D35: KöLa = Köyliön Lallit (1946)

Sheet MYP, MSS
B1: Pasi Viitanen | E1: 16.4.1968
B2: YKKÖSPESIS | E2: Runkosarja | L2: Runkosarja TOP-10 | Q2: Jatkosarjat | X2: SUOMENSARJA | AA2: Runkosarja | AH2: Runkosarja TOP-10 | AM2: Jatkosarjat
B3: Vuosi | C3: Sija | D3: Seura | E3: OTT | F3: KUN | G3: LÖI | H3: TOI | I3: KL | J3: KL-% | L3: LÖI | M3: TOI | N3: L+T | O3: KL | Q3: OTT | R3: KUN | S3: LÖI | T3: TOI | U3: KL | V3: KL-% | X3: Vuosi | Y3: Sija | Z3: Seura | AA3: OTT | AB3: KUN | AC3: LÖI | AD3: TOI | AE3: KL | AF3: KL-% | AH3: LÖI | AI3: TOI | AJ3: L+T | AK3: KL | AM3: OTT | AN3: KUN | AO3: LÖI | AP3: TOI | AQ3: KL | AR3: KL-%
X4: 1984 | Y4: 6. | Z4: JoKo | AA4: 1 | AB4: 0 | AC4: 0 | AD4: 0
X5: 1985 | Y5: 10. | Z5: JoKo | AA5: 7 | AB5: 0 | AC5: 3 | AD5: 3
X7: 1988 | Y7: 4. | Z7: TPP | AA7: 22 | AB7: 0 | AC7: 15 | AD7: 27
X8: 1989 | Y8: 9. | Z8: JoKo
X9: 1990 | Y9: 4. | Z9: JoKo | AA9: 21 | AB9: 2 | AC9: 10 | AD9: 25
B11: 1992 | C11: 10. | D11: JoKo | E11: 23 | F11: 2 | G11: 12 | H11: 14 | I11: 89
B12: 1993 | C12: 9. | D12: JoKo | E12: 25 | F12: 2 | G12: 19 | H12: 26 | I12: 102
B13: 1994 | C13: 10. | D13: JoKo | E13: 26 | F13: 0 | G13: 5 | H13: 11 | I13: 60
B15: 2000 | C15: 13. | D15: JoKo | E15: 25 | F15: 3 | G15: 24 | H15: 3 | I15: 68 | J15: 43.9 % | K15: 155
X17: 2002 | Y17: 1. | Z17: KöLa | AA17: 17 | AB17: 1 | AC17: 43 | AD17: 3 | AE17: 62 | AF17: 48.4 % | AG17: 128 | AH17: 1. | AJ17: 1.
X18: 2003 | Y18: 8. | Z18: JoKo | AA18: 18 | AB18: 1 | AC18: 17 | AD18: 12 | AE18: 66 | AF18: 49.6 % | AG18: 133
X19: 2004 | Y19: 1. | Z19: JoKo | AA19: 15 | AB19: 0 | AC19: 29 | AD19: 7 | AE19: 64 | AF19: 59.8 % | AG19: 107 | AH19: 9. | AM19: 5 | AN19: 0 | AO19: 5 | AP19: 3 | AQ19: 15 | AR19: 51.7 % | AS19: 29
B20: YHTEENSÄ | E20: =SUM(E4:E19) -> 99 | F20: =SUM(F4:F19) -> 7 | G20: =SUM(G4:G19) -> 60 | H20: =SUM(H4:H19) -> 54 | I20: =SUM(I4:I19) -> 319 | J20: 0.0 % | K20: =SUM(K4:K19) -> 155 | Q20: =SUM(Q4:Q19) -> 0 | R20: =SUM(R4:R19) -> 0 | S20: =SUM(S4:S19) -> 0 | T20: =SUM(T4:T19) -> 0 | U20: =SUM(U4:U19) -> 0 | V20: 0.0 % | W20: =SUM(W4:W19) -> 0 | X20: YHTEENSÄ | AA20: =SUM(AA4:AA19) -> 101 | AB20: =SUM(AB4:AB19) -> 4 | AC20: =SUM(AC4:AC19) -> 117 | AD20: =SUM(AD4:AD19) -> 77 | AE20: =SUM(AE4:AE19) -> 192 | AF20: =PRODUCT(AE20/AG20) -> 52.2 % | AG20: =SUM(AG4:AG19) -> 368 | AM20: =SUM(AM4:AM19) -> 5 | AN20: =SUM(AN4:AN19) -> 0 | AO20: =SUM(AO4:AO19) -> 5 | AP20: =SUM(AP4:AP19) -> 3 | AQ20: =SUM(AQ4:AQ19) -> 15 | AR20: =PRODUCT(AQ20/AS20) -> 51.7 % | AS20: =SUM(AS4:AS19) -> 29
B22: KAIKKI OTTELUT | E22: OTT | F22: KUN | G22: LÖI | H22: TOI | I22: KL | J22: KL-% | L22: ka/L | M22: ka/T | N22: ka/l+t | O22: ka/kl | R22: Seurat | T22: JoKo = Jokioisten Koetus (1902)
B23: SUPERPESIS | E23: 0 | F23: 0 | G23: 0 | H23: 0 | I23: 0 | J23: 0.0 % | K23: 0 | L23: 0.00 | M23: 0.00 | N23: 0.00 | O23: 0.00 | T23: TPP = Tammelan Pallopeliitat
B24: YKKÖSPESIS | E24: =PRODUCT(E20+Q20) -> 99 | F24: =PRODUCT(F20+R20) -> 7 | G24: =PRODUCT(G20+S20) -> 60 | H24: =PRODUCT(H20+T20) -> 54 | I24: =PRODUCT(I20+U20) -> 319 | K24: =PRODUCT(K20+W20) -> 155 | L24: =PRODUCT((F24+G24)/E24) -> 0.68 | M24: =PRODUCT(H24/E24) -> 0.55 | N24: =PRODUCT((F24+G24+H24)/E24) -> 1.22 | O24: 3.22 | T24: KöLa = Köyliön Lallit (1946)
B25: SUOMENSARJA | E25: =PRODUCT(AA20+AM20) -> 106 | F25: =PRODUCT(AB20+AN20) -> 4 | G25: =PRODUCT(AC20+AO20) -> 122 | H25: =PRODUCT(AD20+AP20) -> 80 | I25: =PRODUCT(AE20+AQ20) -> 207 | J25: =PRODUCT(I25/K25) -> 52.1 % | K25: =PRODUCT(AG20+AS20) -> 397 | L25: =PRODUCT((F25+G25)/E25) -> 1.19 | M25: =PRODUCT(H25/E25) -> 0.75 | N25: =PRODUCT((F25+G25+H25)/E25) -> 1.94 | O25: 3.76
B26: YHTEENSÄ | E26: =SUM(E23:E25) -> 205 | F26: =SUM(F23:F25) -> 11 | G26: 182 | H26: 134 | I26: 526 | K26: =SUM(K23:K25) -> 552 | L26: =PRODUCT((F26+G26)/E26) -> 0.94 | M26: =PRODUCT(H26/E26) -> 0.65 | N26: =PRODUCT((F26+G26+H26)/E26) -> 1.60 | O26: 3.42
